fUST/lending_fUST_20260621
["ID","MTS","AMOUNT","RATE_DAILY","PERIOD"]
[425859306,1782007847000,-151.0,0.00017632,2]
[425859299,1782007847000,-151.0,0.00017632,2]
[425859300,1782007847000,-151.0,0.00017632,2]
[425859312,1782007847000,-155.53236302,0.00017632,2]
[425859302,1782007847000,-151.0,0.00017632,2]
[425859310,1782007847000,-151.0,0.00017632,2]
[425859320,1782007847000,-500.0,0.00017699,2]
[425859335,1782007847000,-500.0,0.00017713,2]
[425859318,1782007847000,-271.2900032,0.0001765,2]
[425859331,1782007847000,-500.0,0.00017713,2]
[425859329,1782007847000,-500.0,0.000177,2]
[425859333,1782007847000,-500.0,0.00017713,2]
[425859325,1782007847000,-500.0,0.000177,2]
[425859337,1782007847000,-500.0,0.00017713,2]
[425859327,1782007847000,-500.0,0.000177,2]
[425859339,1782007847000,-284.93248594,0.00017713,2]
[425859341,1782007847000,-500.0,0.00017713,2]
[425859344,1782007847000,-500.0,0.00017713,2]
[425859342,1782007847000,-500.0,0.00017713,2]
[425859346,1782007847000,-234.10047344,0.00017732,2]
[425859293,1782007847000,-843.20904572,0.00017632,2]
[425859348,1782007847000,-160.0,0.00017739,8]
[425859323,1782007847000,-500.0,0.000177,2]
[425859295,1782007847000,-181.97833929,0.00017632,2]
[425859255,1782007847000,-1080.43,0.00017631,2]
[425859291,1782007847000,-1000.0,0.00017632,2]
[425859350,1782007847000,-1896.477024,0.00017765,2]
[425859239,1782007847000,-1080.43,0.00017631,2]
[425859240,1782007847000,-1080.43,0.00017631,2]
[425859237,1782007847000,-1080.43,0.00017631,2]
[425859242,1782007847000,-1080.43,0.00017631,2]
[425859246,1782007847000,-1080.43,0.00017631,2]
[425859244,1782007847000,-1080.43,0.00017631,2]
[425859249,1782007847000,-1080.43,0.00017631,2]
[425859248,1782007847000,-1080.43,0.00017631,2]
[425859251,1782007847000,-1080.43,0.00017631,2]
[425859253,1782007847000,-1080.43,0.00017631,2]
[425859265,1782007847000,-1080.43,0.00017631,2]
[425859257,1782007847000,-1080.43,0.00017631,2]
[425859289,1782007847000,-1000.0,0.00017632,2]
[425859261,1782007847000,-1080.43,0.00017631,2]
[425859263,1782007847000,-1080.43,0.00017631,2]
[425859267,1782007847000,-1080.43,0.00017631,2]
[425859282,1782007847000,-1000.0,0.00017632,2]
[425859280,1782007847000,-1000.0,0.00017632,2]
[425859269,1782007847000,-1080.43,0.00017631,2]
[425859284,1782007847000,-1000.0,0.00017632,2]
[425859285,1782007847000,-1000.0,0.00017632,2]
[425859276,1782007847000,-500.0,0.00017631,2]
[425859287,1782007847000,-1000.0,0.00017632,2]
[425859275,1782007847000,-500.0,0.00017631,2]
[425859278,1782007847000,-301.06746561,0.00017631,2]
[425859271,1782007847000,-1080.43,0.00017631,2]
[425859273,1782007847000,-1080.55439731,0.00017631,2]
[425859259,1782007847000,-1080.43,0.00017631,2]
[425859360,1782007847000,-504.58188195,0.00017796,2]
[425859362,1782007847000,-500.0,0.00017796,2]
[425859472,1782007847000,-513.10797049,0.00017796,2]
[425859419,1782007847000,-500.0,0.00017796,2]
[425859421,1782007847000,-500.0,0.00017796,2]
[425859424,1782007847000,-513.67576627,0.00017796,2]
[425859432,1782007847000,-500.0,0.00017796,2]
[425859430,1782007847000,-518.60232801,0.00017796,2]
[425859423,1782007847000,-541.35272893,0.00017796,2]
[425859428,1782007847000,-519.38766896,0.00017796,2]
[425859435,1782007847000,-506.1001417,0.00017796,2]
[425859438,1782007847000,-503.0496694,0.00017796,2]
[425859441,1782007847000,-507.55717732,0.00017796,2]
[425859443,1782007847000,-502.21438158,0.00017796,2]
[425859446,1782007847000,-500.0,0.00017796,2]
[425859450,1782007847000,-515.49882892,0.00017796,2]
[425859426,1782007847000,-500.0,0.00017796,2]
[425859458,1782007847000,-502.84028487,0.00017796,2]
[425859456,1782007847000,-509.54032885,0.00017796,2]
[425859445,1782007847000,-543.62696438,0.00017796,2]
[425859454,1782007847000,-537.87776079,0.00017796,2]
[425859452,1782007847000,-504.98713241,0.00017796,2]
[425859448,1782007847000,-508.03583379,0.00017796,2]
[425859461,1782007847000,-508.2647382,0.00017796,2]
[425859474,1782007847000,-633.51582063,0.00017796,2]
[425859469,1782007847000,-515.49272701,0.00017796,2]
[425859467,1782007847000,-504.31382167,0.00017796,2]
[425859463,1782007847000,-549.84100551,0.00017796,2]
[425859471,1782007847000,-371.70462196,0.00017796,2]
[425859352,1782007847000,-500.0,0.00017795,2]
[425859465,1782007847000,-506.0071148,0.00017796,2]
[425859460,1782007847000,-509.95783047,0.00017796,2]
[425859417,1782007847000,-500.0,0.00017796,2]
[425859437,1782007847000,-511.15097123,0.00017796,2]
[425859413,1782007847000,-500.0,0.00017796,2]
[425859356,1782007847000,-500.0,0.00017795,2]
[425859415,1782007847000,-150.76909121,0.00017796,2]
[425859358,1782007847000,-588.96981465,0.00017796,2]
[425859364,1782007847000,-500.0,0.00017796,2]
[425859365,1782007847000,-522.96576987,0.00017796,2]
[425859367,1782007847000,-500.0,0.00017796,2]
[425859371,1782007847000,-507.13412149,0.00017796,2]
[425859369,1782007847000,-500.0,0.00017796,2]
[425859372,1782007847000,-512.81937881,0.00017796,2]
[425859374,1782007847000,-505.97329112,0.00017796,2]
[425859386,1782007847000,-509.11002882,0.00017796,2]
[425859376,1782007847000,-500.0,0.00017796,2]
[425859380,1782007847000,-500.0,0.00017796,2]
[425859382,1782007847000,-507.45865635,0.00017796,2]
[425859388,1782007847000,-500.0,0.00017796,2]
[425859354,1782007847000,-500.0,0.00017795,2]
[425859384,1782007847000,-504.50233404,0.00017796,2]
[425859378,1782007847000,-525.77966786,0.00017796,2]
[425859406,1782007847000,-500.0,0.00017796,2]
[425859410,1782007847000,-500.0,0.00017796,2]
[425859400,1782007847000,-513.51962322,0.00017796,2]
[425859404,1782007847000,-500.0,0.00017796,2]
[425859402,1782007847000,-500.0,0.00017796,2]
[425859411,1782007847000,-512.13481361,0.00017796,2]
[425859397,1782007847000,-500.0,0.00017796,2]
[425859390,1782007847000,-526.61654125,0.00017796,2]
[425859395,1782007847000,-500.0,0.00017796,2]
[425859391,1782007847000,-511.04037885,0.00017796,2]
[425859394,1782007847000,-500.0,0.00017796,2]
[425859407,1782007847000,-500.0,0.00017796,2]
[425859552,1782007848000,-1000.0,0.00017808,2]
[425859554,1782007848000,-500.0,0.00017808,2]
[425859550,1782007848000,-500.0,0.00017808,2]
[425859548,1782007848000,-500.0,0.00017808,2]
[425859544,1782007848000,-500.0,0.00017808,2]
[425859543,1782007848000,-500.0,0.00017808,2]
[425859535,1782007848000,-1010.0,0.000178,4]
[425859537,1782007848000,-500.0,0.00017808,2]
[425859530,1782007848000,-872.74025684,0.000178,2]
[425859539,1782007848000,-500.0,0.00017808,2]
[425859531,1782007848000,-885.61028661,0.000178,2]
[425859546,1782007848000,-521.30404425,0.00017808,2]
[425859556,1782007848000,-500.0,0.00017808,2]
[425859562,1782007848000,-519.64750044,0.00017808,2]
[425859568,1782007848000,-500.0,0.00017808,2]
[425859558,1782007848000,-500.0,0.00017808,2]
[425859570,1782007848000,-520.57394261,0.00017808,2]
[425859560,1782007848000,-526.01226281,0.00017808,2]
[425859541,1782007848000,-500.0,0.00017808,2]
[425859566,1782007848000,-513.41689716,0.00017808,2]
[425859572,1782007848000,-500.0,0.00017808,2]
[425859574,1782007848000,-500.0,0.00017808,2]
[425859576,1782007848000,-500.0,0.00017808,2]
[425859577,1782007848000,-558.54,0.00017808,2]
[425859583,1782007848000,-500.0,0.00017808,2]
[425859579,1782007848000,-518.58879795,0.00017808,2]
[425859591,1782007848000,-500.0,0.00017808,2]
[425859564,1782007848000,-500.0,0.00017808,2]
[425859524,1782007848000,-506.52024015,0.00017798,2]
[425859581,1782007848000,-500.0,0.00017808,2]
[425859526,1782007848000,-160.0,0.00017798,2]
[425859483,1782007848000,-517.71001571,0.00017796,2]
[425859481,1782007848000,-510.88542594,0.00017796,2]
[425859476,1782007848000,-284.03439551,0.00017796,2]
[425859479,1782007848000,-516.65367893,0.00017796,2]
[425859482,1782007848000,-542.1564757,0.00017796,2]
[425859477,1782007848000,-544.0794239,0.00017796,2]
[425859484,1782007848000,-511.95350934,0.00017796,2]
[425859485,1782007848000,-514.22716897,0.00017796,2]
[425859487,1782007848000,-500.0,0.00017798,2]
[425859493,1782007848000,-500.0,0.00017798,2]
[425859497,1782007848000,-500.0,0.00017798,2]
[425859488,1782007848000,-500.0,0.00017798,2]
[425859486,1782007848000,-500.0,0.00017797,2]
[425859533,1782007848000,-924.44888327,0.000178,2]
[425859495,1782007848000,-500.0,0.00017798,2]
[425859498,1782007848000,-500.0,0.00017798,2]
[425859509,1782007848000,-500.0,0.00017798,2]
[425859513,1782007848000,-504.07499359,0.00017798,2]
[425859501,1782007848000,-500.0,0.00017798,2]
[425859503,1782007848000,-506.40446187,0.00017798,2]
[425859507,1782007848000,-505.28793155,0.00017798,2]
[425859505,1782007848000,-500.0,0.00017798,2]
[425859517,1782007848000,-607.60487325,0.00017798,2]
[425859515,1782007848000,-502.66177777,0.00017798,2]
[425859522,1782007848000,-500.0,0.00017798,2]
[425859519,1782007848000,-500.0,0.00017798,2]
[425859521,1782007848000,-500.0,0.00017798,2]
[425859528,1782007848000,-769.21766456,0.000178,2]
[425859511,1782007848000,-500.0,0.00017798,2]
[425859587,1782007848000,-500.0,0.00017808,2]
[425859615,1782007848000,-500.0,0.00017861,2]
[425859585,1782007848000,-500.0,0.00017808,2]
[425859659,1782007848000,-500.0,0.00017931,2]
[425859661,1782007848000,-500.0,0.00017931,2]
[425859673,1782007848000,-500.0,0.00017931,2]
[425859671,1782007848000,-500.0,0.00017931,2]
[425859665,1782007848000,-500.0,0.00017931,2]
[425859674,1782007848000,-500.0,0.00017931,2]
[425859663,1782007848000,-500.0,0.00017931,2]
[425859669,1782007848000,-500.0,0.00017931,2]
[425859667,1782007848000,-504.60076519,0.00017931,2]
[425859676,1782007848000,-500.0,0.00017931,2]
[425859687,1782007848000,-510.49591499,0.00017931,2]
[425859678,1782007848000,-500.0,0.00017931,2]
[425859680,1782007848000,-556.18861526,0.00017931,2]
[425859689,1782007848000,-500.0,0.00017931,2]
[425859682,1782007848000,-500.0,0.00017931,2]
[425859685,1782007848000,-500.0,0.00017931,2]
[425859691,1782007848000,-500.0,0.00017931,2]
[425859694,1782007848000,-500.0,0.00017931,2]
[425859693,1782007848000,-500.0,0.00017931,2]
[425859696,1782007848000,-511.06735517,0.00017931,2]
[425859698,1782007848000,-647.36755151,0.00017931,2]
[425859700,1782007848000,-500.0,0.00017931,2]
[425859702,1782007848000,-500.0,0.00017931,2]
[425859704,1782007848000,-500.0,0.00017931,2]
[425859709,1782007848000,-500.0,0.00017931,2]
[425859706,1782007848000,-500.0,0.00017931,2]
[425859594,1782007848000,-156.45,0.00017808,2]
[425859658,1782007848000,-500.0,0.00017931,2]
[425859654,1782007848000,-500.0,0.00017931,2]
[425859707,1782007848000,-500.0,0.00017931,2]
[425859650,1782007848000,-500.0,0.00017931,2]
[425859588,1782007848000,-500.0,0.00017808,2]
[425859593,1782007848000,-500.0,0.00017808,2]
[425859596,1782007848000,-500.0,0.00017829,2]
[425859606,1782007848000,-500.0,0.00017861,2]
[425859604,1782007848000,-500.0,0.00017861,2]
[425859598,1782007848000,-500.0,0.00017861,2]
[425859602,1782007848000,-530.24377131,0.00017861,2]
[425859613,1782007848000,-517.68893553,0.00017861,2]
[425859656,1782007848000,-500.0,0.00017931,2]
[425859600,1782007848000,-500.0,0.00017861,2]
[425859608,1782007848000,-500.0,0.00017861,2]
[425859617,1782007848000,-160.0,0.00017862,9]
[425859621,1782007848000,-160.0,0.00017886,2]
[425859619,1782007848000,-1022.970781,0.00017864,2]
[425859611,1782007848000,-2509.49,0.00017861,2]
[425859625,1782007848000,-194.242379,0.00017886,2]
[425859644,1782007848000,-500.0,0.00017931,2]
[425859623,1782007848000,-177.121189,0.00017886,2]
[425859642,1782007848000,-500.0,0.00017931,2]
[425859646,1782007848000,-500.0,0.00017931,2]
[425859648,1782007848000,-500.0,0.00017931,2]
[425859640,1782007848000,-500.0,0.0001793,2]
[425859638,1782007848000,-500.0,0.0001793,2]
[425859627,1782007848000,-5876.447923,0.00017897,2]
[425859636,1782007848000,-500.0,0.0001793,2]
[425859633,1782007848000,-500.0,0.0001793,2]
[425859631,1782007848000,-1909.545457,0.00017897,2]
[425859629,1782007848000,-3660.484853,0.00017897,2]
[425859635,1782007848000,-500.0,0.0001793,2]
[425859782,1782007849000,-500.0,0.0001807,2]
[425859808,1782007849000,-513.95150187,0.0001807,2]
[425859796,1782007849000,-508.44597644,0.0001807,2]
[425859794,1782007849000,-500.0,0.0001807,2]
[425859780,1782007849000,-500.0,0.0001807,2]
[425859788,1782007849000,-500.0,0.0001807,2]
[425859776,1782007849000,-500.0,0.0001807,2]
[425859792,1782007849000,-517.67578364,0.0001807,2]
[425859790,1782007849000,-500.0,0.0001807,2]
[425859774,1782007849000,-500.0,0.0001807,2]
[425859778,1782007849000,-513.13562801,0.0001807,2]
[425859809,1782007849000,-500.0,0.0001807,2]
[425859828,1782007849000,-500.0,0.00018072,2]
[425859811,1782007849000,-500.0,0.0001807,2]
[425859815,1782007849000,-500.0,0.00018071,2]
[425859817,1782007849000,-500.0,0.00018071,2]
[425859820,1782007849000,-500.0,0.00018072,2]
[425859822,1782007849000,-500.0,0.00018072,2]
[425859802,1782007849000,-516.16928233,0.0001807,2]
[425859798,1782007849000,-522.57118373,0.0001807,2]
[425859800,1782007849000,-531.83776747,0.0001807,2]
[425859804,1782007849000,-509.18499205,0.0001807,2]
[425859806,1782007849000,-523.29577656,0.0001807,2]
[425859826,1782007849000,-509.603846,0.00018072,2]
[425859786,1782007849000,-513.76756257,0.0001807,2]
[425859813,1782007849000,-500.0,0.0001807,2]
[425859784,1782007849000,-512.86116731,0.0001807,2]
[425859731,1782007849000,-500.0,0.00017974,2]
[425859770,1782007849000,-500.0,0.00018069,2]
[425859824,1782007849000,-500.0,0.00018072,2]
[425859711,1782007849000,-500.0,0.00017931,2]
[425859715,1782007849000,-500.0,0.00017931,2]
[425859713,1782007849000,-500.0,0.00017931,2]
[425859719,1782007849000,-500.0,0.00017931,2]
[425859717,1782007849000,-500.0,0.00017931,2]
[425859721,1782007849000,-3919.150701,0.00017931,2]
[425859723,1782007849000,-516.24435717,0.00017974,2]
[425859725,1782007849000,-529.80799091,0.00017974,2]
[425859744,1782007849000,-514.21791401,0.00017987,2]
[425859742,1782007849000,-500.0,0.00017987,2]
[425859727,1782007849000,-500.0,0.00017974,2]
[425859729,1782007849000,-513.9861666,0.00017974,2]
[425859735,1782007849000,-160.0,0.00017984,10]
[425859733,1782007849000,-464.0128385,0.00017976,2]
[425859746,1782007849000,-500.0,0.00017987,2]
[425859750,1782007849000,-514.74069934,0.00017987,2]
[425859748,1782007849000,-500.0,0.00017987,2]
[425859754,1782007849000,-151.55383651,0.0001799,2]
[425859758,1782007849000,-151.0,0.00018032,2]
[425859756,1782007849000,-163.81613914,0.00018,2]
[425859752,1782007849000,-500.0,0.00017987,2]
[425859761,1782007849000,-151.0,0.00018032,2]
[425859763,1782007849000,-151.0,0.00018032,2]
[425859766,1782007849000,-151.0,0.00018032,2]
[425859764,1782007849000,-151.0,0.00018032,2]
[425859768,1782007849000,-500.0,0.00018069,2]
[425859772,1782007849000,-500.0,0.0001807,2]
[425859830,1782007849000,-500.0,0.00018072,2]
[425859842,1782007849000,-500.0,0.00018072,2]
[425859835,1782007849000,-500.0,0.00018072,2]
[425859903,1782007849000,-160.0,0.00018107,11]
[425859915,1782007849000,-529.67056108,0.00018135,2]
[425859905,1782007849000,-500.0,0.0001813,2]
[425859913,1782007849000,-530.71415613,0.00018135,2]
[425859917,1782007849000,-2509.49,0.00018135,2]
[425859911,1782007849000,-500.0,0.00018135,2]
[425859907,1782007849000,-500.0,0.00018135,2]
[425859909,1782007849000,-500.0,0.00018135,2]
[425859921,1782007849000,-151.0,0.00018192,2]
[425859919,1782007849000,-500.0,0.00018135,2]
[425859927,1782007849000,-500.0,0.00018204,2]
[425859925,1782007849000,-151.0,0.00018192,2]
[425859901,1782007849000,-7755.066708,0.00018097,2]
[425859929,1782007849000,-500.0,0.00018204,2]
[425859923,1782007849000,-151.0,0.00018192,2]
[425859936,1782007849000,-507.85741785,0.00018205,2]
[425859944,1782007849000,-510.21103824,0.00018205,2]
[425859938,1782007849000,-500.0,0.00018205,2]
[425859942,1782007849000,-500.0,0.00018205,2]
[425859940,1782007849000,-500.0,0.00018205,2]
[425859933,1782007849000,-500.0,0.00018205,2]
[425859946,1782007849000,-500.0,0.00018205,2]
[425859948,1782007849000,-500.0,0.00018205,2]
[425859833,1782007849000,-500.0,0.00018072,2]
[425859954,1782007849000,-502.73642626,0.00018205,2]
[425859952,1782007849000,-517.07640116,0.00018205,2]
[425859931,1782007849000,-507.82059467,0.00018205,2]
[425859897,1782007849000,-500.0,0.00018082,2]
[425859950,1782007849000,-514.44283278,0.00018205,2]
[425859888,1782007849000,-500.0,0.00018082,2]
[425859899,1782007849000,-500.0,0.00018082,2]
[425859837,1782007849000,-500.0,0.00018072,2]
[425859840,1782007849000,-500.0,0.00018072,2]
[425859846,1782007849000,-193.29071813,0.00018081,2]
[425859860,1782007849000,-500.0,0.00018082,2]
[425859848,1782007849000,-307.42357774,0.00018081,2]
[425859858,1782007849000,-500.0,0.00018082,2]
[425859862,1782007849000,-500.0,0.00018082,2]
[425859864,1782007849000,-1005.54906636,0.00018082,2]
[425859854,1782007849000,-500.0,0.00018082,2]
[425859856,1782007849000,-500.0,0.00018082,2]
[425859867,1782007849000,-500.0,0.00018082,2]
[425859850,1782007849000,-500.0,0.00018082,2]
[425859844,1782007849000,-416.55702137,0.00018072,2]
[425859871,1782007849000,-500.0,0.00018082,2]
[425859852,1782007849000,-500.0,0.00018082,2]
[425859894,1782007849000,-517.47550557,0.00018082,2]
[425859892,1782007849000,-500.0,0.00018082,2]
[425859890,1782007849000,-500.0,0.00018082,2]
[425859879,1782007849000,-500.0,0.00018082,2]
[425859886,1782007849000,-500.0,0.00018082,2]
[425859877,1782007849000,-500.0,0.00018082,2]
[425859884,1782007849000,-558.54,0.00018082,2]
[425859882,1782007849000,-500.0,0.00018082,2]
[425859875,1782007849000,-500.0,0.00018082,2]
[425859869,1782007849000,-500.0,0.00018082,2]
[425859873,1782007849000,-521.48793923,0.00018082,2]
[425860014,1782007850000,-500.0,0.00018248,2]
[425860003,1782007850000,-500.0,0.00018231,2]
[425860008,1782007850000,-500.0,0.00018231,2]
[425859999,1782007850000,-500.0,0.00018231,2]
[425859997,1782007850000,-500.0,0.00018231,2]
[425859980,1782007850000,-502.91734775,0.00018205,2]
[425859984,1782007850000,-161.92712728,0.00018229,5]
[425859985,1782007850000,-500.0,0.00018231,2]
[425860016,1782007850000,-526.81526981,0.00018261,2]
[425860001,1782007850000,-500.0,0.00018231,2]
[425859995,1782007850000,-500.0,0.00018231,2]
[425860030,1782007850000,-295.4915542,0.00018332,2]
[425860004,1782007850000,-500.0,0.00018231,2]
[425860006,1782007850000,-500.0,0.00018231,2]
[425860012,1782007850000,-500.0,0.00018248,2]
[425860018,1782007850000,-500.0,0.00018261,2]
[425860032,1782007850000,-200.0,0.00018332,2]
[425860020,1782007850000,-500.0,0.00018261,2]
[425860034,1782007850000,-500.0,0.00018343,2]
[425860028,1782007850000,-190.987,0.00018305,2]
[425860022,1782007850000,-500.0,0.00018261,2]
[425860024,1782007850000,-221.08,0.00018296,2]
[425859982,1782007850000,-160.0,0.00018229,12]
[425860010,1782007850000,-539.45776332,0.00018231,2]
[425859978,1782007850000,-503.31824739,0.00018205,2]
[425859969,1782007850000,-507.98605313,0.00018205,2]
[425859975,1782007850000,-319.68264493,0.00018205,2]
[425860037,1782007850000,-521.95801968,0.00018344,2]
[425859957,1782007850000,-500.0,0.00018205,2]
[425859956,1782007850000,-500.0,0.00018205,2]
[425859958,1782007850000,-500.0,0.00018205,2]
[425859959,1782007850000,-596.15371827,0.00018205,2]
[425859960,1782007850000,-500.0,0.00018205,2]
[425859964,1782007850000,-514.99227644,0.00018205,2]
[425859961,1782007850000,-500.0,0.00018205,2]
[425859963,1782007850000,-500.0,0.00018205,2]
[425859962,1782007850000,-500.0,0.00018205,2]
[425859966,1782007850000,-568.97395654,0.00018205,2]
[425859965,1782007850000,-509.7230495,0.00018205,2]
[425859967,1782007850000,-511.66980108,0.00018205,2]
[425859968,1782007850000,-504.43414172,0.00018205,2]
[425859970,1782007850000,-509.10916781,0.00018205,2]
[425859972,1782007850000,-503.86483956,0.00018205,2]
[425859974,1782007850000,-500.0,0.00018205,2]
[425859971,1782007850000,-506.97117422,0.00018205,2]
[425859973,1782007850000,-500.0,0.00018205,2]
[425859976,1782007850000,-509.8327477,0.00018205,2]
[425859987,1782007850000,-500.0,0.00018231,2]
[425859989,1782007850000,-500.0,0.00018231,2]
[425859991,1782007850000,-500.0,0.00018231,2]
[425859993,1782007850000,-500.0,0.00018231,2]
[425860026,1782007850000,-448.158,0.00018305,2]
[425860103,1782007850000,-500.0,0.00018356,2]
[425860039,1782007850000,-525.06332228,0.00018344,2]
[425860093,1782007850000,-500.0,0.00018356,2]
[425860108,1782007850000,-500.0,0.00018356,2]
[425860155,1782007850000,-503.46555328,0.00018479,2]
[425860106,1782007850000,-500.0,0.00018356,2]
[425860110,1782007850000,-500.0,0.00018356,2]
[425860115,1782007850000,-500.0,0.00018356,2]
[425860122,1782007850000,-500.0,0.00018356,2]
[425860117,1782007850000,-500.0,0.00018356,2]
[425860125,1782007850000,-288.48015445,0.00018356,2]
[425860112,1782007850000,-519.8401475,0.00018356,2]
[425860120,1782007850000,-558.54,0.00018356,2]
[425860129,1782007850000,-500.0,0.00018356,2]
[425860132,1782007850000,-500.0,0.00018356,2]
[425860136,1782007850000,-163.43653603,0.00018384,3]
[425860150,1782007850000,-720.0,0.00018442,2]
[425860141,1782007850000,-500.0,0.00018409,2]
[425860148,1782007850000,-500.0,0.00018409,2]
[425860143,1782007850000,-500.0,0.00018409,2]
[425860145,1782007850000,-2509.49,0.00018409,2]
[425860139,1782007850000,-500.0,0.00018409,2]
[425860153,1782007850000,-1867.644674,0.00018452,2]
[425860134,1782007850000,-500.0,0.00018356,2]
[425860036,1782007850000,-500.0,0.00018343,2]
[425860100,1782007850000,-500.0,0.00018356,2]
[425860098,1782007850000,-500.0,0.00018356,2]
[425860127,1782007850000,-500.0,0.00018356,2]
[425860078,1782007850000,-511.74057845,0.00018346,2]
[425860095,1782007850000,-500.0,0.00018356,2]
[425860043,1782007850000,-522.05699651,0.00018344,2]
[425860045,1782007850000,-601.12381775,0.00018344,2]
[425860056,1782007850000,-500.0,0.00018344,2]
[425860058,1782007850000,-327.52713342,0.00018344,2]
[425860062,1782007850000,-525.30754492,0.00018346,2]
[425860064,1782007850000,-513.56520518,0.00018346,2]
[425860060,1782007850000,-500.0,0.00018346,2]
[425860047,1782007850000,-500.0,0.00018344,2]
[425860066,1782007850000,-508.60863897,0.00018346,2]
[425860068,1782007850000,-514.77215473,0.00018346,2]
[425860052,1782007850000,-157.70609904,0.00018344,2]
[425860042,1782007850000,-500.0,0.00018344,2]
[425860054,1782007850000,-500.0,0.00018344,2]
[425860080,1782007850000,-160.0,0.00018351,2]
[425860070,1782007850000,-500.0,0.00018346,2]
[425860084,1782007850000,-500.0,0.00018356,2]
[425860088,1782007850000,-500.0,0.00018356,2]
[425860082,1782007850000,-160.0,0.00018351,2]
[425860072,1782007850000,-512.03934594,0.00018346,2]
[425860090,1782007850000,-500.0,0.00018356,2]
[425860074,1782007850000,-504.63008868,0.00018346,2]
[425860076,1782007850000,-503.18869129,0.00018346,2]
[425860049,1782007850000,-500.0,0.00018344,2]
[425860235,1782007851000,-500.0,0.00018535,2]
[425860248,1782007851000,-237.50155257,0.00018562,2]
[425860240,1782007851000,-160.0,0.00018538,2]
[425860244,1782007851000,-728.23518222,0.00018562,2]
[425860242,1782007851000,-417.15472785,0.00018538,2]
[425860233,1782007851000,-500.0,0.00018535,2]
[425860238,1782007851000,-500.0,0.00018535,2]
[425860227,1782007851000,-178.0505089,0.00018531,2]
[425860229,1782007851000,-231.06703443,0.00018531,2]
[425860246,1782007851000,-184.69223737,0.00018562,2]
[425860232,1782007851000,-174.43876468,0.00018535,2]
[425860260,1782007851000,-190.03547812,0.00018562,2]
[425860254,1782007851000,-274.60709602,0.00018562,2]
[425860250,1782007851000,-261.12947422,0.00018562,2]
[425860258,1782007851000,-195.91736445,0.00018562,2]
[425860262,1782007851000,-175.59430949,0.00018562,2]
[425860252,1782007851000,-153.81285247,0.00018562,2]
[425860266,1782007851000,-177.13443902,0.00018562,2]
[425860264,1782007851000,-164.75565799,0.00018562,2]
[425860268,1782007851000,-181.42256675,0.00018562,2]
[425860282,1782007851000,-500.0,0.00018618,2]
[425860272,1782007851000,-166.75929579,0.00018562,2]
[425860278,1782007851000,-500.0,0.00018617,2]
[425860256,1782007851000,-268.92880963,0.00018562,2]
[425860225,1782007851000,-211.95378406,0.00018531,2]
[425860162,1782007851000,-518.71620038,0.00018479,2]
[425860217,1782007851000,-171.45454164,0.00018531,2]
[425860274,1782007851000,-164.86406522,0.00018562,2]
[425860157,1782007851000,-521.16447547,0.00018479,2]
[425860165,1782007851000,-515.25383516,0.00018479,2]
[425860168,1782007851000,-356.4161293,0.00018479,2]
[425860160,1782007851000,-519.0688512,0.00018479,2]
[425860187,1782007851000,-518.25124129,0.00018479,2]
[425860185,1782007851000,-532.45184031,0.00018479,2]
[425860190,1782007851000,-514.50781219,0.00018479,2]